bitfinex/quotes_ETHUSD_20250720
["timestamp","ask_amount","ask_price","bid_price","bid_amount"]
[1753010837226,8.69962963,3712.3,3712.2,0.001]
[1753010837426,4.92,3712.3,3712.2,0.4365]
[1753010837818,9.421,3712.3,3712.2,0.4365]
[1753010838221,4.92,3712.3,3712.2,0.4365]
[1753010838549,6.15,3712.3,3712.2,0.4365]
[1753010838755,10.651,3712.3,3712.2,0.4365]
[1753010839423,6.15,3712.3,3712.2,0.4365]
[1753010839823,7.38,3712.3,3712.2,19.182641]
[1753010840028,7.38,3712.3,3712.2,21.03294323]
[1753010840478,7.38,3712.3,3712.2,23.7267636]
[1753010840624,7.38,3712.3,3712.2,24.04051168]
[1753010840826,7.38,3712.3,3712.2,38.62375668]
[1753010841061,7.38,3712.3,3712.2,39.17375668]
[1753010841323,4.4834,3712.5,3712.4,3.26537525]
[1753010841523,4.4834,3712.5,3712.4,36.87232556]
[1753010841818,4.4834,3712.5,3712.4,37.63721156]
[1753010842278,4.4834,3712.5,3712.4,20.56068148]
[1753010842589,4.4834,3712.5,3712.4,18.36733448]
[1753010842771,5.7134,3712.5,3712.4,18.36733448]
[1753010842970,5.7134,3712.5,3712.4,26.90809548]
[1753010843176,5.7134,3712.5,3712.4,36.44407748]
[1753010843558,5.7134,3712.5,3712.4,12.53858448]
[1753010844073,5.7134,3712.5,3712.4,3.88480223]
[1753010844256,6.9434,3712.5,3712.4,5.89788923]
[1753010844463,6.9434,3712.5,3712.4,5.604687]
[1753010844847,6.9434,3712.5,3712.4,3.5916]
[1753010845151,6.9434,3712.5,3712.4,7.194604]
[1753010845359,6.9434,3712.5,3712.4,25.34695048]
[1753010845584,8.1734,3712.5,3712.4,36.57847748]
[1753010845941,8.1734,3712.5,3712.4,33.92100048]
[1753010846781,8.1734,3712.5,3712.4,34.80038648]
[1753010846977,9.4034,3712.5,3712.4,37.45786348]
[1753010847386,9.4034,3712.5,3712.4,18.96237048]
[1753010847586,9.4034,3712.5,3712.4,9.10882023]
[1753010847761,9.4034,3712.5,3712.4,5.528713]
[1753010847959,9.4034,3712.5,3712.4,2.591646]
[1753010848364,10.6334,3712.5,3712.4,2.591646]
[1753010848560,10.6334,3712.5,3712.4,5.591646]
[1753010849086,10.6334,3712.5,3712.4,3.5916]
[1753010849288,10.6334,3712.5,3712.4,10.087307]
[1753010849583,10.6334,3712.5,3712.4,9.630107]
[1753010849786,11.8634,3712.5,3712.4,6.172938]
[1753010849993,11.8634,3712.5,3712.4,5.622538]
[1753010850348,11.8634,3712.5,3712.4,4.854688]
[1753010850552,11.8634,3712.5,3712.4,0.6076]
[1753010850985,11.8634,3712.5,3712.4,16.732851]
[1753010851186,13.0934,3712.5,3712.4,21.012526]
[1753010851380,17.5834,3712.5,3712.2,0.001]
[1753010851687,17.5834,3712.5,3712.3,2.105143]
[1753010852052,17.5834,3712.5,3712.3,2.018143]
[1753010852251,13.0934,3712.5,3712.2,3.1354]
[1753010852489,4.489,3712.4,3712.2,0.6086]
[1753010852691,2.1884,3712.3,3711.4,0.20186166]
[1753010852868,1.6384,3712.0,3711.4,0.20186166]
[1753010853063,0.1344,3711.7,3711.4,0.20186166]
[1753010853269,4.9314,3711.6,3711.4,0.20186166]
[1753010853464,0.4424,3711.5,3711.4,0.20186166]
[1753010853699,4.489,3711.5,3711.4,0.20186166]
[1753010854076,1.23,3711.5,3711.4,0.20186166]
[1753010854265,5.718,3711.5,3711.4,0.20186166]
[1753010854863,8.42758,3711.5,3711.4,0.20186166]
[1753010855054,8.42758,3711.5,3711.4,0.10186166]
[1753010855257,0.1344,3711.4,3711.3,0.001]
[1753010855499,5.0648,3711.4,3711.3,0.001]
[1753010856807,1.3644,3711.4,3711.3,0.001]
[1753010857107,5.8524,3711.4,3711.3,0.001]
[1753010857463,5.8524,3711.4,3711.3,0.20250349]
[1753010858201,8.51781,3711.4,3711.3,0.20250349]
[1753010859211,8.51781,3711.4,3711.3,0.001]
[1753010859370,9.74781,3711.4,3711.3,0.001]
[1753010860457,10.29781,3711.4,3711.3,0.001]
[1753010860897,11.52781,3711.4,3711.3,0.001]
[1753010861092,11.52681,3711.4,3711.3,0.001]
[1753010862338,12.75681,3711.4,3711.3,0.001]
[1753010863076,14.38591,3711.4,3711.3,0.001]
[1753010863463,15.61591,3711.4,3711.3,0.001]
[1753010863769,11.13091,3711.4,3711.3,0.001]
[1753010863958,15.61491,3711.4,3711.3,0.001]
[1753010864500,15.61391,3711.4,3711.3,0.001]
[1753010864661,11.13091,3711.4,3711.3,0.001]
[1753010864865,16.84391,3711.4,3711.3,0.001]
[1753010865270,8.7444,3711.4,3711.3,0.001]
[1753010865499,13.2274,3711.4,3711.3,0.001]
[1753010865810,13.2264,3711.4,3711.3,0.001]
[1753010866181,8.7444,3711.4,3711.3,0.001]
[1753010866382,9.9744,3711.4,3711.3,0.001]
[1753010866906,14.4564,3711.4,3711.3,0.001]
[1753010867684,15.552,3711.4,3711.3,0.4742]
[1753010868095,11.07,3711.4,3711.3,0.4742]
[1753010868316,15.551,3711.4,3711.3,0.4742]
[1753010868513,11.07,3711.4,3711.3,0.4742]
[1753010868701,15.551,3711.4,3711.3,9.016564]
[1753010868904,11.07,3711.4,3711.3,36.19157363]
[1753010869085,11.3724,3711.4,3711.3,37.43620771]
[1753010869416,2.46,3711.5,3711.4,6.96193511]
[1753010869578,2.46,3711.5,3711.4,36.96193511]
[1753010870383,1e-08,3711.5,3711.4,36.96193511]
[1753010871017,1e-08,3711.5,3711.4,37.13685095]
[1753010871829,1e-08,3711.5,3711.4,36.61016695]
[1753010872022,1.23000001,3711.5,3711.4,37.13685095]
[1753010872319,1.23000001,3711.5,3711.4,32.86057403]
[1753010872621,1.23000001,3711.5,3711.4,33.22582211]
[1753010872989,1.23000001,3711.5,3711.4,36.63254911]
[1753010873522,2.46000001,3711.5,3711.4,36.63254911]
[1753010874618,2.46000001,3711.5,3711.4,36.96193511]
[1753010874797,3.69000001,3711.5,3711.4,36.96193511]
[1753010875319,14.3234,3712.5,3712.4,5.71657525]
[1753010875515,14.3234,3712.5,3712.4,25.20127925]
[1753010875698,14.3234,3712.5,3712.4,35.71657525]
[1753010876098,14.3234,3712.5,3712.4,34.35749825]
[1753010876322,15.5534,3712.5,3712.4,34.35749825]
[1753010877084,15.5534,3712.5,3712.4,0.5729]
[1753010877282,15.5534,3712.5,3712.4,36.26657525]
[1753010877722,16.7834,3712.5,3712.4,36.26657525]
[1753010878899,16.7834,3712.5,3712.4,36.40097525]
[1753010879101,18.0134,3712.5,3712.4,36.40097525]
[1753010880432,19.2434,3712.5,3712.4,36.40097525]
[1753010881229,19.2434,3712.5,3712.4,6.40097525]
[1753010881401,20.91,3713.0,3712.9,6.2662125]
[1753010881612,20.91,3713.0,3712.9,36.2662125]
[1753010881811,20.91,3713.0,3712.9,36.4006125]
[1753010882828,20.91,3713.0,3712.9,36.3006125]
[1753010883125,22.14,3713.0,3712.9,36.3006125]
[1753010884630,23.37,3713.0,3712.9,36.3006125]
[1753010885727,23.37,3713.0,3712.9,6.3006125]
[1753010885940,24.6,3713.0,3712.9,6.3006125]
[1753010886465,24.6,3713.0,3712.9,36.3006125]
[1753010887336,25.83,3713.0,3712.9,36.3006125]
[1753010889062,27.06,3713.0,3712.9,36.3006125]
[1753010889272,21.68694787,3713.0,3712.9,36.99524658]
[1753010889474,0.002,3713.3,3713.1,6.26606743]
[1753010889777,1e-08,3713.3,3713.2,6.2659949]
[1753010889927,1e-08,3713.3,3713.2,36.63124298]
[1753010890422,1.23000001,3713.3,3713.2,36.63124298]
[1753010890673,1e-08,3713.4,3713.3,6.24302237]
[1753010890828,1e-08,3713.4,3713.3,36.26592237]
[1753010891031,1e-08,3713.4,3713.3,36.63117045]
[1753010891354,1e-08,3713.4,3713.3,36.96055645]
[1753010891531,1.23000001,3713.4,3713.3,36.96055645]
[1753010892596,1.23000001,3713.4,3713.3,37.15882595]
[1753010892781,1.23000001,3713.4,3713.3,36.82943995]
[1753010892988,2.46000001,3713.4,3713.3,36.82943995]
[1753010893382,2.46000001,3713.4,3713.3,36.23727287]
[1753010893612,1e-08,3713.7,3713.6,0.5729]
[1753010893904,1.23,3714.5,3714.2,2.71520939]
[1753010894066,1.23,3714.5,3714.4,3.26512485]
[1753010894271,1.23,3714.5,3714.4,36.26512485]
[1753010894972,1.23,3714.5,3714.4,6.26512485]
[1753010895178,1.23,3714.5,3714.4,36.26512485]
[1753010895501,1.09561452,3714.5,3714.4,36.63037293]
[1753010895702,2.32561452,3714.5,3714.4,36.63037293]
[1753010895897,2.32561452,3714.5,3714.4,36.95975893]
[1753010897073,3.55561452,3714.5,3714.4,36.95975893]
[1753010897972,1.23,3715.3,3714.6,3.2649799]
[1753010898174,1e-08,3714.8,3714.7,6.59429342]
[1753010898385,1e-08,3714.8,3714.7,36.9595415]
[1753010899712,1e-08,3714.8,3714.7,37.0939415]
[1753010899894,1.23000001,3714.8,3714.7,37.0939415]
[1753010900098,1.23000001,3714.8,3714.7,6.39930742]
[1753010900410,1.23000001,3714.8,3714.7,36.39930742]
[1753010901414,2.46000001,3714.8,3714.7,6.39930742]
[1753010901629,2.46000001,3714.8,3714.7,36.39930742]
[1753010902214,2.46000001,3714.8,3714.7,6.39930742]
[1753010902503,2.46000001,3714.8,3714.7,36.39930742]
[1753010902714,3.69000001,3714.8,3714.7,36.7645555]
[1753010904207,1.76012161,3714.8,3714.7,37.0939415]
[1753010905311,1.76012161,3714.8,3714.7,7.0939415]
[1753010905609,2.31166059,3714.8,3714.7,37.0939415]
[1753010905909,1.97243008,3714.8,3714.7,37.0939415]
[1753010906916,3.20243008,3714.8,3714.7,37.0939415]
[1753010907486,1e-08,3714.8,3714.7,37.0939415]
[1753010907713,1e-08,3714.8,3714.7,34.86386842]
[1753010907903,0.00200001,3714.8,3714.7,35.41386842]
[1753010908213,1.23200001,3714.8,3714.7,35.41386842]
[1753010908515,1.23200001,3714.8,3714.7,36.39930742]
[1753010909013,1.23200001,3714.8,3714.7,36.7645555]
[1753010909514,2.46200001,3714.8,3714.7,6.7645555]
[1753010909724,2.89350001,3714.8,3714.7,11.934626]
[1753010910030,2.46200001,3714.8,3714.7,17.414276]
[1753010910211,2.46200001,3714.8,3714.7,31.04964808]
[1753010910378,2.46200001,3714.8,3714.7,24.55094408]
[1753010910582,2.89350001,3714.8,3714.7,27.566934]
[1753010910782,2.89350001,3714.8,3714.7,26.933201]
[1753010911008,4.11623803,3714.8,3714.7,29.62520842]
[1753010911478,5.72753803,3714.8,3714.7,27.93020542]
[1753010911814,5.72753803,3714.8,3714.7,24.682955]
[1753010911979,5.72753803,3714.8,3714.7,12.159264]
[1753010912414,6.95753803,3714.8,3714.7,12.159264]
[1753010912598,6.95753803,3714.8,3714.7,30.616771]
[1753010912798,6.95753803,3714.8,3714.7,33.1344]
[1753010913019,5.34623803,3714.8,3714.7,35.82640742]
[1753010913616,5.34623803,3714.8,3714.7,13.207016]
[1753010913818,6.57623803,3714.8,3714.7,15.89902342]
[1753010914122,6.57623803,3714.8,3714.7,13.207016]
[1753010914315,6.57623803,3714.8,3714.7,12.616561]
[1753010914616,6.57623803,3714.8,3714.7,14.107176]
[1753010914816,6.57623803,3714.8,3714.7,13.034695]
[1753010915323,7.80623803,3714.8,3714.7,13.034695]
[1753010915513,7.80623803,3714.8,3714.7,12.523612]
[1753010915714,7.80623803,3714.8,3714.7,12.254799]
[1753010916020,9.46473803,3714.8,3714.7,11.061252]
[1753010916419,9.46473803,3714.8,3714.7,3.1344]
[1753010916624,10.69473803,3714.8,3714.7,3.1344]
[1753010916988,10.69473803,3714.8,3714.7,12.168999]
[1753010917299,10.69473803,3714.8,3714.7,12.218999]
[1753010917521,1.6585,3714.7,3713.3,0.1982695]
[1753010917850,1.6585,3714.5,3712.1,1.6362]
[1753010918060,1.6585,3714.1,3713.5,0.1344]
[1753010918261,4.441,3714.0,3713.5,0.1344]
[1753010918417,4.441,3714.0,3711.9,1.32161179]
[1753010918418,1.6585,3713.9,3712.1,2.69384055]
[1753010918622,1.6062,3713.7,3713.3,0.1344]
[1753010918821,1.6062,3713.5,3711.8,2.69409057]
[1753010919131,1.6062,3713.3,3712.9,0.1354]
[1753010919337,1.6062,3713.1,3712.9,0.1354]
[1753010919870,0.4315,3713.0,3712.9,0.33914349]
[1753010920015,0.4315,3713.0,3712.9,25.25831149]
[1753010920346,0.4315,3713.0,3712.9,4.413435]
[1753010920539,0.4315,3713.0,3712.9,9.53551]
[1753010920740,0.4315,3713.0,3712.9,7.33551]
[1753010921050,1.6615,3713.0,3712.9,9.53551]
[1753010921215,1.6615,3713.0,3712.9,9.594717]
[1753010921644,1.6615,3713.0,3712.9,29.239455]
[1753010921958,1.6615,3713.0,3712.9,29.912172]
[1753010922277,1.6615,3713.0,3712.9,25.569264]
[1753010922414,2.8915,3713.0,3712.9,32.554286]
[1753010922634,2.8915,3713.0,3712.9,27.546637]
[1753010922972,2.8915,3713.0,3712.9,25.276543]
[1753010923175,2.46,3713.0,3712.9,25.276543]
[1753010923372,2.46,3713.0,3712.9,28.16855583]
[1753010923579,2.46,3713.0,3712.9,6.02741283]
[1753010923773,3.69,3713.0,3712.9,38.66621283]
[1753010923962,3.69,3713.0,3712.9,28.03417083]
[1753010924154,3.69,3713.0,3712.9,25.79737083]
[1753010924477,3.69,3713.0,3712.9,38.66621283]
[1753010924694,1.23,3713.3,3713.2,3.2430949]
[1753010924843,1.23,3713.3,3713.2,36.2430949]
[1753010925037,2.46,3713.3,3713.2,36.8227949]
[1753010925979,11.49883803,3714.8,3713.2,35.7732]
[1753010926159,9.75441055,3714.8,3714.0,0.55]
[1753010926484,10.98441055,3714.8,3714.7,5.69200742]
[1753010926693,10.98441055,3714.8,3714.7,32.64340842]
[1753010926995,10.98441055,3714.8,3714.7,36.68730742]
[1753010927275,10.98441055,3714.8,3714.7,36.24200742]
[1753010927871,12.21441055,3714.8,3714.7,36.24200742]
[1753010928270,12.21441055,3714.8,3714.7,35.35332642]
[1753010928473,12.21441055,3714.8,3714.7,34.87611342]
[1753010928688,12.21441055,3714.8,3714.7,36.68730742]
[1753010929150,13.44441055,3714.8,3714.7,36.68730742]
[1753010929658,13.44441055,3714.8,3714.7,33.0]
[1753010929886,17.10285161,3714.8,3713.9,0.001]
[1753010930104,16.67135161,3714.8,3714.1,3.0]
[1753010930256,0.4315,3714.7,3714.2,23.610469]
[1753010930455,0.4315,3714.7,3712.9,0.28307035]
[1753010930456,0.55,3714.4,3713.2,0.001]
[1753010930698,1.5131,3714.2,3713.3,7.330947]
[1753010930885,0.4315,3714.1,3713.3,30.0]
[1753010931191,1.5131,3714.2,3713.5,3.0]
[1753010931371,1.5131,3714.2,3713.6,22.322081]
[1753010931566,1.5131,3714.2,3713.4,2.69294856]
[1753010931567,1.5131,3714.2,3713.5,12.404833]
[1753010931772,0.4315,3714.1,3713.3,10.730219]
[1753010931974,0.4315,3714.1,3713.3,2.986259]
[1753010932269,0.4315,3714.1,3713.3,12.168099]
[1753010932467,0.4315,3714.1,3713.4,3.0]
[1753010932773,0.4315,3714.1,3713.4,10.115058]
[1753010932970,0.824546,3714.0,3713.5,5.384887]
[1753010933175,0.824546,3714.0,3713.7,3.0]
[1753010933375,0.4315,3713.9,3713.2,0.001]
[1753010933701,0.4315,3713.9,3713.4,3.0]
[1753010934009,0.4315,3713.8,3713.6,3.0]
[1753010934303,0.4315,3713.8,3713.7,14.417551]
[1753010934499,0.4315,3713.8,3713.7,11.148104]
[1753010934701,1.6615,3713.8,3713.7,11.148104]
[1753010935265,1.6615,3713.8,3713.7,3.0]
[1753010935592,1.23,3713.8,3713.7,3.0]
[1753010936091,2.46,3713.8,3713.7,3.1344]
[1753010936301,2.46,3713.8,3713.7,11.276369]
[1753010936463,2.46,3713.8,3713.7,11.286369]
[1753010937288,3.69,3713.8,3713.7,13.901749]
[1753010937694,3.69,3713.8,3713.7,3.1344]
[1753010938787,4.92,3713.8,3713.7,3.1344]
[1753010939176,4.92,3713.8,3713.7,9.603557]
[1753010939409,4.92,3713.8,3713.7,8.681474]
[1753010939714,5.89287894,3713.8,3713.7,5.51871]
[1753010939890,7.42757894,3713.8,3713.7,3.1344]
[1753010940209,8.65757894,3713.8,3713.7,3.1344]
[1753010940417,8.65757894,3713.8,3713.7,6.963124]
[1753010940576,8.65757894,3713.8,3713.7,6.964524]
[1753010941511,8.65757894,3713.8,3713.7,3.1344]
[1753010941683,9.88757894,3713.8,3713.7,3.0]
[1753010943128,11.11757894,3713.8,3713.7,3.0]
[1753010943314,10.6101,3713.8,3713.7,3.0]
[1753010944426,11.8401,3713.8,3713.7,3.0]
[1753010945699,13.0701,3713.8,3713.7,3.0]
[1753010947094,14.3001,3713.8,3713.7,3.0]
[1753010947308,16.29601,3713.8,3713.7,3.0]
[1753010948431,17.52601,3713.8,3713.7,3.0]
[1753010949811,18.75601,3713.8,3713.7,3.0]
[1753010950012,23.18201,3713.8,3713.7,3.0]
[1753010950214,21.1851,3713.8,3713.7,3.0]
[1753010950431,20.7197,3713.8,3713.7,3.0]
[1753010950595,16.2947,3713.8,3713.7,3.0]
[1753010950798,20.7197,3713.8,3713.7,3.0]
[1753010951109,16.2947,3713.8,3713.7,14.091109]
[1753010951331,15.99,3713.8,3713.7,15.621318]
[1753010951548,15.99,3713.8,3713.7,8.236162]
[1753010952408,15.99,3713.8,3713.7,3.4681]
[1753010952619,17.22,3713.8,3713.7,16.286577]
[1753010952825,17.22,3713.8,3713.7,18.71015331]
[1753010953348,17.22,3713.8,3713.7,33.80152431]
[1753010953712,17.22,3713.8,3713.7,33.24534131]
[1753010953912,17.22,3713.8,3713.7,31.79613731]
[1753010954113,18.45,3713.8,3713.7,24.38148331]
[1753010954313,18.45,3713.8,3713.7,24.27175531]
[1753010954546,18.45,3713.8,3713.7,21.05768731]
[1753010955425,19.68,3713.8,3713.7,22.04436131]
[1753010956362,19.68,3713.8,3713.7,26.31614431]
[1753010956860,19.68,3713.8,3713.7,25.33768831]
[1753010957026,20.91,3713.8,3713.7,25.33768831]
[1753010957460,20.91,3713.8,3713.7,26.93965831]
[1753010957660,20.91,3713.8,3713.7,23.73937731]
[1753010957875,20.91,3713.8,3713.7,21.66547731]
[1753010958105,20.91,3713.8,3713.7,19.78429231]
[1753010958678,22.14,3713.8,3713.7,25.49831231]
[1753010959571,22.14,3713.8,3713.7,28.26052431]
[1753010959975,20.68014967,3713.8,3713.7,30.44142431]
[1753010960127,16.64022472,3713.8,3713.7,30.44142431]
[1753010960464,16.64022472,3713.8,3713.7,31.87541431]
[1753010960885,16.64022472,3713.8,3713.7,23.20194531]
[1753010961392,16.64022472,3713.8,3713.7,21.52264831]
[1753010961547,17.87022472,3713.8,3713.7,23.05464831]
[1753010961752,17.87022472,3713.8,3713.7,23.60464831]
[1753010962430,17.86670869,3713.8,3713.7,23.60464831]
[1753010962780,17.86670869,3713.8,3713.7,36.42561031]
[1753010962949,19.09670869,3713.8,3713.7,35.49582931]
[1753010963545,19.09670869,3713.8,3713.7,37.21657331]
[1753010964477,20.32670869,3713.8,3713.7,37.21657331]
[1753010964630,20.32670869,3713.8,3713.7,37.52984631]
[1753010965072,20.32670869,3713.8,3713.7,36.87555631]
[1753010965749,20.32670869,3713.8,3713.7,36.55964331]
[1753010966065,18.86671359,3713.8,3713.7,23.25169931]
[1753010966456,18.86671359,3713.8,3713.7,23.80169931]
[1753010966770,18.86671359,3713.8,3713.7,19.214907]
[1753010967066,18.86671359,3713.8,3713.7,21.10822832]
[1753010967229,20.09671359,3713.8,3713.7,6.99232132]
[1753010967427,16.05640343,3713.8,3713.7,23.38938532]
[1753010967626,16.05640343,3713.8,3713.7,24.71338532]
[1753010967831,16.05640343,3713.8,3713.7,22.63118832]
[1753010968636,14.59640851,3713.8,3713.7,29.73453532]
[1753010968859,11.90641309,3713.8,3713.7,29.73453532]
[1753010969047,8.97118392,3713.8,3713.7,29.73453532]
[1753010969768,8.97118392,3713.8,3713.7,34.42280032]
[1753010969974,10.20118392,3713.8,3713.7,34.42280032]
[1753010970193,10.20118392,3713.8,3713.7,34.16113432]
[1753010970365,10.20118392,3713.8,3713.7,28.33997832]
[1753010970754,10.20118392,3713.8,3713.7,27.86420532]
[1753010971158,10.20118392,3713.8,3713.7,24.79430132]
[1753010971396,11.43118392,3713.8,3713.7,24.16914932]
[1753010971785,11.43118392,3713.8,3713.7,9.36574101]
[1753010971946,11.43118392,3713.8,3713.7,9.17919901]
[1753010972147,6.05124842,3713.8,3713.7,12.33643132]
[1753010972585,7.28124842,3713.8,3713.7,12.33643132]
[1753010972767,7.28124842,3713.8,3713.7,30.58836332]
[1753010972964,1.90138601,3713.8,3713.7,30.58836332]
[1753010973568,1.23,3714.0,3713.9,5.6925873]
[1753010973894,1.23,3714.0,3713.9,25.0682453]
[1753010974078,2.46,3714.0,3713.9,25.6671453]
[1753010974590,2.46,3714.0,3713.9,25.1241653]
[1753010974761,2.46,3714.0,3713.9,27.9662653]
[1753010974968,2.46,3714.0,3713.9,25.5662653]
[1753010975163,1.23,3714.2,3714.1,3.24244231]
[1753010975491,2.46,3714.2,3714.1,32.57840231]
[1753010975866,2.46,3714.2,3714.1,33.19762231]
[1753010976457,0.002,3714.7,3714.6,6.2420799]
[1753010976885,1.232,3714.7,3714.6,28.9779319]
[1753010977156,1.232,3714.7,3714.6,20.0557829]
[1753010978109,1.232,3714.7,3714.6,6.8409799]
[1753010978275,2.462,3714.7,3714.6,21.8217959]
[1753010978476,2.462,3714.7,3714.6,24.4788819]
[1753010978878,2.462,3714.7,3714.6,24.8180869]
[1753010979080,2.462,3714.7,3714.6,26.4616869]
[1753010979702,3.692,3714.7,3714.6,26.4616869]
[1753010980008,3.692,3714.9,3714.6,26.4616869]
[1753010980009,6.68727223,3714.8,3714.7,6.24200742]
[1753010980307,6.68727223,3714.8,3714.7,37.28028285]
[1753010980922,6.68727223,3714.8,3714.7,7.28028285]
[1753010981112,7.91727223,3714.8,3714.7,37.28028285]
[1753010982481,9.14727223,3714.8,3714.7,36.60200685]
[1753010983110,9.14727223,3714.8,3714.7,37.28028285]
[1753010983500,14.83539945,3714.8,3713.6,0.001]
[1753010983703,1.5871,3714.6,3713.7,7.170215]
[1753010983879,2.0408,3714.5,3713.7,5.705225]
[1753010984079,2.0408,3714.4,3713.7,8.507825]
[1753010984316,0.64448,3714.3,3713.8,3.0]
[1753010984515,0.4537,3714.2,3713.6,0.001]
[1753010984713,0.4537,3714.2,3713.8,3.0]
[1753010984915,0.4537,3714.1,3714.0,3.0]
[1753010985115,1.5871,3714.0,3713.6,0.001]
[1753010985429,2.0408,3714.0,3713.7,7.048435]
[1753010985633,0.4537,3713.9,3713.6,0.001]
[1753010985781,0.4537,3713.9,3713.8,3.0]
[1753010985983,0.4537,3713.9,3713.6,0.001]
[1753010986227,3.02118,3714.0,3713.8,3.0]
[1753010986448,3.02118,3714.0,3713.6,0.001]
[1753010986620,3.02118,3714.0,3713.8,3.0]
[1753010986939,0.4537,3713.9,3713.6,0.001]
[1753010987225,3.02118,3714.0,3713.9,19.273915]
[1753010987226,4.0471,3714.0,3713.9,19.273915]
[1753010987432,4.0471,3714.0,3713.9,14.361515]
[1753010988324,4.0471,3714.0,3713.9,3.0]
[1753010988543,5.2771,3714.0,3713.9,3.0]
[1753010988889,5.2771,3714.0,3713.9,15.367777]
[1753010989089,3.69,3714.0,3713.9,15.6368]
[1753010989493,3.69,3714.0,3713.9,3.0]
[1753010989692,3.69,3714.0,3713.9,29.938048]
[1753010989924,4.92,3714.0,3713.9,23.255048]
[1753010990326,4.92,3714.0,3713.9,24.4352963]
[1753010990507,4.92,3714.0,3713.9,24.172814]
[1753010990908,4.92,3714.0,3713.9,27.3299013]
[1753010991431,6.15,3714.0,3713.9,31.6170613]
[1753010991635,6.15,3714.0,3713.9,25.442083]
[1753010991804,6.15,3714.0,3713.9,24.977583]
[1753010992610,6.15,3714.0,3713.9,22.874094]
[1753010992838,7.38,3714.0,3713.9,19.493403]
[1753010993048,7.382,3714.0,3713.9,19.493403]
[1753010993461,7.382,3714.0,3713.9,21.018495]
[1753010993665,7.382,3714.0,3713.9,23.8454823]
[1753010994241,8.612,3714.0,3713.9,23.8454823]
[1753010994454,1.8824554,3714.0,3713.9,8.3602873]
[1753010994744,10.37727223,3714.8,3714.0,3.55]
[1753010994939,10.37727223,3714.8,3714.7,5.69200742]
[1753010995142,10.37727223,3714.8,3714.7,6.15650742]
[1753010995329,10.37727223,3714.8,3714.7,34.60411442]
[1753010995529,11.60727223,3714.8,3714.7,34.88380342]
[1753010995729,11.60727223,3714.8,3714.7,35.43380342]
[1753010996630,11.60727223,3714.8,3714.7,36.70650742]
[1753010996943,1.5418,3717.3,3714.8,1.6532]
[1753010997161,2.61276246,3717.3,3716.7,0.55]
[1753010997344,0.1198,3718.1,3717.7,3.0]
[1753010997541,1.23,3718.5,3718.1,29.213251]
[1753010997762,1.23,3718.5,3718.2,10.01722986]
[1753010997963,0.1198,3718.4,3718.2,10.01722986]
[1753010998295,0.1198,3718.4,3718.3,10.01722986]
[1753010999762,1.3498,3718.4,3718.3,10.01722986]
[1753011000249,2.9639,3718.4,3718.3,10.01722986]
[1753011001257,4.1939,3718.4,3718.3,7.01722986]
[1753011001483,4.1939,3718.4,3718.1,0.20102323]
[1753011001484,2.1641,3718.3,3718.2,5.35062986]
[1753011001682,2.1641,3718.3,3716.9,0.16465347]
[1753011001683,1.6141,3718.2,3716.9,0.16465347]
[1753011001849,1.6141,3718.0,3717.0,5.35062986]
[1753011002044,0.4702,3717.9,3716.8,3.0]
[1753011002278,1.6141,3717.8,3716.9,12.43775786]
[1753011002443,0.67863,3717.7,3716.6,5.35062986]
[1753011002649,0.67863,3717.7,3716.6,5.79703892]
[1753011002884,0.67863,3717.7,3716.7,23.202611]
[1753011003052,0.20843,3717.7,3716.7,23.202611]
[1753011003248,0.4702,3717.6,3716.7,23.202611]
[1753011003454,0.229273,3717.5,3716.8,3.0]
[1753011003769,0.229273,3717.5,3717.0,3.0]
[1753011003975,0.229273,3717.5,3717.2,3.0]
[1753011004175,0.229273,3717.5,3717.4,3.0]
[1753011004484,1.459273,3717.5,3717.4,5.35062986]
[1753011004683,1.661,3717.4,3717.1,5.35062986]
[1753011004886,0.7956673,3717.3,3717.1,5.35062986]
[1753011005102,0.4702,3717.2,3717.1,5.35062986]
[1753011005797,1.7002,3717.2,3717.1,5.35062986]
[1753011006297,3.3612,3717.2,3717.1,5.35062986]
[1753011006460,3.3612,3717.2,3716.7,4.09657599]
[1753011006461,1.661,3717.0,3716.7,4.09657599]
[1753011006659,0.1344,3716.8,3716.7,4.09657599]
[1753011006859,1.661,3716.7,3716.3,3.0]
[1753011007161,0.4702,3716.6,3716.4,4.09657599]
[1753011007355,0.4702,3716.6,3716.5,3.0]
[1753011007596,1.23,3717.0,3716.9,4.09657599]
[1753011007811,1.23,3717.0,3716.9,7.09657599]
[1753011008090,1.23,3717.0,3716.9,9.86616699]
[1753011008488,2.46,3717.0,3716.9,9.86616699]
[1753011008655,1.23,3717.2,3717.1,1.63657599]
[1753011008862,1.5113,3718.1,3717.3,3.0]
[1753011009084,1.5113,3718.1,3717.5,3.0]
[1753011009359,1.5113,3718.1,3717.7,3.0]
[1753011009692,1.5113,3718.1,3717.8,7.443908]
[1753011009859,2.46,3717.9,3717.8,7.851908]
[1753011010059,2.46,3717.9,3717.8,7.852008]
[1753011010312,2.46,3717.9,3717.8,7.862008]
[1753011010471,2.46,3717.9,3717.8,33.25094457]
[1753011010675,2.46,3717.9,3717.8,32.95753757]
[1753011010887,2.46,3717.9,3717.8,32.59559857]
[1753011011066,2.46,3717.9,3717.8,29.70257657]
[1753011011267,2.46,3717.9,3717.8,31.81838233]
[1753011011599,2.46,3717.9,3717.8,34.32724933]
[1753011011600,3.69,3717.9,3717.8,34.32724933]
[1753011011803,3.69,3717.9,3717.8,28.71577932]
[1753011012161,3.69,3717.9,3717.8,29.11269233]
[1753011012472,3.69,3717.9,3717.8,9.45000703]
[1753011012880,4.92,3717.9,3717.8,39.45000703]
[1753011013379,4.78568528,3717.9,3717.8,39.45000703]
[1753011013782,4.65137056,3717.9,3717.8,39.45000703]